fUSD/lending_fUSD_20250824
["ID","MTS","AMOUNT","RATE_DAILY","PERIOD"]
[381127060,1756060261746,-151.0,0.00021917,2]
[381127061,1756060261755,-151.0,0.00021917,2]
[381127062,1756060261765,-400.0,0.00021917,2]
[381127063,1756060261774,-151.0,0.00021917,2]
[381127064,1756060261783,-444.71,0.00021917,2]
[381127065,1756060261794,-151.0,0.00021917,2]
[381127066,1756060261804,-649.73,0.00021917,2]
[381127067,1756060261814,-400.0,0.00021917,2]
[381127068,1756060261823,-782.85,0.00021917,2]
[381127069,1756060261832,-151.0,0.00021917,2]
[381127070,1756060261842,-591.92,0.00021917,2]
[381127071,1756060261851,-151.0,0.00021917,2]
[381127072,1756060261860,-300.321802,0.00021917,2]
[381127073,1756060261870,-400.0,0.00021917,2]
[381127074,1756060261879,-1355.35,0.00021917,2]
[381127075,1756060261889,-699.95,0.00021917,2]
[381127076,1756060261899,-687.25,0.00021917,2]
[381127077,1756060261908,-151.0,0.00021917,2]
[381127078,1756060261917,-151.0,0.00021917,2]
[381127079,1756060261928,-1425.54,0.00021917,2]
[381127080,1756060261937,-1266.53,0.00021917,2]
[381127081,1756060261948,-151.0,0.00021917,2]
[381127082,1756060261957,-151.0,0.00021917,2]
[381127083,1756060261966,-151.0,0.00021917,2]
[381127084,1756060261975,-151.0,0.00021917,2]
[381127085,1756060261985,-151.0,0.00021917,2]
[381127086,1756060261994,-151.0,0.00021917,2]
[381127087,1756060262003,-151.0,0.00021917,2]
[381127088,1756060262013,-151.0,0.00021917,2]
[381127089,1756060262022,-151.0,0.00021917,2]
[381127090,1756060262031,-151.0,0.00021917,2]
[381127091,1756060262041,-400.0,0.00021917,2]
[381127092,1756060262050,-151.0,0.00021917,2]
[381127093,1756060262060,-151.0,0.00021917,2]
[381127094,1756060262069,-400.0,0.00021917,2]
[381127095,1756060262079,-151.0,0.00021917,2]
[381127096,1756060262089,-151.0,0.00021917,2]
[381127097,1756060262098,-153.186595,0.00021917,2]
[381127098,1756060262108,-400.0,0.00021917,2]
[381127099,1756060262118,-151.0,0.00021917,2]
[381127100,1756060262128,-151.0,0.00021917,2]
[381127101,1756060262137,-151.0,0.00021917,2]
[381127102,1756060262147,-400.0,0.00021917,2]
[381127103,1756060262156,-970.62,0.00021917,2]
[381127104,1756060262166,-400.0,0.00021917,2]
[381127105,1756060262175,-400.0,0.00021917,2]
[381127106,1756060262185,-151.0,0.00021917,2]
[381127107,1756060262194,-1148.1,0.00021917,2]
[381127108,1756060262206,-151.0,0.00021917,2]
[381127109,1756060262215,-400.0,0.00021917,2]
[381127110,1756060262224,-151.0,0.00021917,2]
[381127111,1756060262234,-151.0,0.00021917,2]
[381127112,1756060262244,-400.0,0.00021917,2]
[381127113,1756060262255,-151.0,0.00021917,2]
[381127114,1756060262265,-151.0,0.00021917,2]
[381127115,1756060262275,-167.089933,0.00021917,2]
[381127116,1756060262286,-151.0,0.00021917,2]
[381127117,1756060262296,-167.089933,0.00021917,2]
[381127118,1756060262310,-400.0,0.00021917,2]
[381127119,1756060262328,-151.0,0.00021917,2]
[381127120,1756060262347,-532.697173,0.00021917,2]
[381127121,1756060262367,-167.089933,0.00021917,2]
[381127122,1756060262387,-151.0,0.00021917,2]
[381127123,1756060262511,-532.697173,0.00021917,2]
[381127124,1756060262520,-151.0,0.00021917,2]
[381127125,1756060262530,-151.0,0.00021917,2]
[381127126,1756060262540,-151.0,0.00021917,2]
[381127127,1756060262549,-167.089933,0.00021917,2]
[381127128,1756060262559,-532.697173,0.00021917,2]
[381127129,1756060262568,-151.0,0.00021917,2]
[381127130,1756060262578,-167.089933,0.00021917,2]
[381127131,1756060262587,-151.0,0.00021917,2]
[381127132,1756060262597,-532.697173,0.00021917,2]
[381127133,1756060262606,-151.0,0.00021917,2]
[381127134,1756060262615,-167.089933,0.00021917,2]
[381127135,1756060262625,-532.697173,0.00021917,2]
[381127136,1756060262634,-151.0,0.00021917,2]
[381127137,1756060262643,-194.819545,0.00021917,2]
[381127138,1756060262652,-532.697173,0.00021917,2]
[381127139,1756060262662,-151.0,0.00021917,2]
[381127140,1756060262671,-167.089933,0.00021917,2]
[381127141,1756060262681,-532.697173,0.00021917,2]
[381127142,1756060262690,-151.0,0.00021917,2]
[381127143,1756060262701,-167.089933,0.00021917,2]
[381127144,1756060262711,-151.0,0.00021917,2]
[381127145,1756060262720,-532.697173,0.00021917,2]
[381127146,1756060262729,-151.0,0.00021917,2]
[381127147,1756060262738,-532.697173,0.00021917,2]
[381127148,1756060262747,-167.089933,0.00021917,2]
[381127149,1756060262756,-532.697173,0.00021917,2]
[381127150,1756060262766,-167.089933,0.00021917,2]
[381127151,1756060262775,-532.697173,0.00021917,2]
[381127152,1756060262785,-167.089933,0.00021917,2]
[381127153,1756060262794,-532.697173,0.00021917,2]
[381127154,1756060262804,-532.697173,0.00021917,2]
[381127155,1756060262813,-270.03819449,0.00021917,2]
[381127156,1756060262822,-167.089933,0.00021917,2]
[381127157,1756060262831,-167.089933,0.00021917,2]
[381127158,1756060262840,-151.0,0.00021917,2]
[381127159,1756060262849,-532.697173,0.00021917,2]
[381127160,1756060262858,-167.089933,0.00021917,2]
[381127161,1756060262867,-400.0,0.00021917,2]
[381127162,1756060262877,-532.697173,0.00021917,2]
[381127163,1756060262886,-151.0,0.00021917,2]
[381127164,1756060262895,-167.089933,0.00021917,2]
[381127165,1756060262904,-532.697173,0.00021917,2]
[381127166,1756060262913,-151.0,0.00021917,2]
[381127167,1756060262923,-400.0,0.00021917,2]
[381127168,1756060262932,-167.089933,0.00021917,2]
[381127169,1756060262940,-151.0,0.00021917,2]
[381127170,1756060262952,-400.0,0.00021917,2]
[381127171,1756060262961,-532.697173,0.00021917,2]
[381127172,1756060262970,-151.0,0.00021917,2]
[381127173,1756060262980,-1246.56,0.00021917,2]
[381127174,1756060262990,-236.960702,0.00021917,2]
[381127175,1756060262999,-167.089933,0.00021917,2]
[381127176,1756060263008,-532.697173,0.00021917,2]
[381127177,1756060263018,-151.0,0.00021917,2]
[381127178,1756060263027,-167.089933,0.00021917,2]
[381127179,1756060263037,-532.697173,0.00021917,2]
[381127180,1756060263046,-151.0,0.00021917,2]
[381127181,1756060263056,-532.697167,0.00021917,2]
[381127182,1756060263065,-1751.87,0.00021917,2]
[381127183,1756060263075,-324.149286,0.00021917,2]
[381127184,1756060263085,-151.0,0.00021917,2]
[381127185,1756060263095,-324.149286,0.00021917,2]
[381127186,1756060263104,-151.0,0.00021917,2]
[381127187,1756060263114,-167.089933,0.00021917,2]
[381127188,1756060263123,-1574.59,0.00021917,2]
[381127189,1756060263133,-324.149286,0.00021917,2]
[381127190,1756060263142,-151.0,0.00021917,2]
[381127191,1756060263152,-10.35930146,0.00021917,2]
[381127192,1756060264270,-156.73062354,0.00021917,2]
[381127193,1756060264280,-324.149286,0.00021917,2]
[381127194,1756060264290,-151.0,0.00021917,2]
[381127195,1756060264300,-324.149286,0.00021917,2]
[381127196,1756060264310,-324.149286,0.00021917,2]
[381127197,1756060264321,-800.07,0.00021917,2]
[381127198,1756060264331,-400.0,0.00021917,2]
[381127199,1756060264342,-812.55,0.00021917,2]
[381127200,1756060264352,-512.93260113,0.00021917,2]
[381127201,1756060264366,-812.44739887,0.00021917,2]
[381127202,1756060264376,-324.149286,0.00021917,2]
[381127203,1756060264386,-1118.45,0.00021917,2]
[381127204,1756060264395,-324.149286,0.00021917,2]
[381127205,1756060264405,-324.149286,0.00021917,2]
[381127206,1756060264415,-400.0,0.00021917,2]
[381127207,1756060264424,-410.33,0.00021917,2]
[381127208,1756060264434,-324.149286,0.00021917,2]
[381127209,1756060264444,-324.149286,0.00021917,2]
[381127210,1756060264461,-324.149286,0.00021917,2]
[381127211,1756060264471,-151.0,0.00021917,2]
[381127212,1756060264480,-324.149286,0.00021917,2]
[381127213,1756060264490,-151.0,0.00021917,2]
[381127214,1756060264499,-65.42779913,0.00021917,2]
[381127215,1756060264513,-258.72148687,0.00021917,2]
[381127216,1756060264523,-151.0,0.00021917,2]
[381127217,1756060264533,-151.0,0.00021917,2]
[381127218,1756060264543,-324.149286,0.00021917,2]
[381127219,1756060264552,-151.0,0.00021917,2]
[381127220,1756060264562,-151.0,0.00021917,2]
[381127221,1756060264572,-253.273583,0.00021917,2]
[381127222,1756060264582,-324.149286,0.00021917,2]
[381127223,1756060264591,-949.74,0.00021917,2]
[381127224,1756060264601,-324.149286,0.00021917,2]
[381127225,1756060264611,-400.0,0.00021917,2]
[381127226,1756060264620,-1415.97,0.00021917,2]
[381127227,1756060264630,-400.0,0.00021917,2]
[381127228,1756060264640,-324.149286,0.00021917,2]
[381127229,1756060264650,-659.99,0.00021917,2]
[381127230,1756060264659,-324.149286,0.00021917,2]
[381127231,1756060264669,-324.149294,0.00021917,2]
[381127232,1756060264679,-400.0,0.00021917,2]
[381127233,1756060264689,-400.0,0.00021917,2]
[381127234,1756060264701,-717.05,0.00021917,2]
[381127235,1756060264711,-1061.35923613,0.00021917,2]
[381127236,1756060264726,-67.75076387,0.00021917,2]
[381127237,1756060264735,-400.0,0.00021917,2]
[381127238,1756060264745,-400.0,0.00021917,2]
[381127239,1756060264755,-171.85013017,0.00021917,2]
[381127240,1756060264783,-228.14986983,0.00021917,2]
[381127241,1756060264793,-275.1484001,0.00021917,2]
[381127242,1756060264814,-191.25645363,0.00021917,2]
[381127243,1756060264824,-400.0,0.00021917,2]
[381127244,1756060264835,-609.66,0.00021917,2]
[381127245,1756060264845,-2413.44,0.00021917,2]
[381127246,1756060264854,-151.0,0.00021917,2]
[381127247,1756060264864,-1153.85,0.00021917,2]
[381127248,1756060264873,-151.0,0.00021917,2]
[381127249,1756060264883,-151.0,0.00021917,2]
[381127250,1756060264893,-151.0,0.00021917,2]
[381127251,1756060264902,-151.0,0.00021917,2]
[381127252,1756060264912,-400.0,0.00021917,2]
[381127253,1756060264922,-151.0,0.00021917,2]
[381127254,1756060264931,-837.49,0.00021917,2]
[381127255,1756060264941,-151.0,0.00021917,2]
[381127256,1756060264952,-151.0,0.00021917,2]
[381127257,1756060264962,-1135.45,0.00021917,2]
[381127258,1756060264971,-151.0,0.00021917,2]
[381127259,1756060264981,-197.8474,0.00021917,2]
[381127260,1756060264991,-151.0,0.00021917,2]
[381127261,1756060265001,-400.0,0.00021917,2]
[381127262,1756060265011,-1130.42,0.00021917,2]
[381127263,1756060265021,-151.0,0.00021917,2]
[381127264,1756060265031,-400.0,0.00021917,2]
[381127265,1756060265041,-400.0,0.00021917,2]
[381127266,1756060265050,-151.0,0.00021917,2]
[381127267,1756060265369,-151.0,0.00021917,2]
[381127268,1756060265379,-151.0,0.00021917,2]
[381127269,1756060265389,-184.190893,0.00021917,2]
[381127270,1756060265399,-400.0,0.00021917,2]
[381127271,1756060265409,-235.41953547,0.00021917,2]
[381127272,1756060265424,-164.58046453,0.00021917,2]
[381127273,1756060265433,-400.0,0.00021917,2]
[381127274,1756060265444,-260.61045786,0.00021917,2]
[381127275,1756060265461,-139.38954214,0.00021917,2]
[381127276,1756060265470,-677.57,0.00021917,2]
[381127277,1756060265479,-205.1385719,0.00021917,2]
[381127278,1756060265491,-194.8614281,0.00021917,2]
[381127279,1756060265501,-379.57814206,0.00021917,2]
[381127280,1756060265517,-686.61185794,0.00021917,2]
[381127281,1756060265526,-671.75,0.00021917,2]
[381127282,1756060265537,-651.59,0.00021917,2]
[381127283,1756060265547,-1500.6,0.00021917,2]
[381127284,1756060265556,-400.0,0.00021917,2]
[381127285,1756060265565,-400.0,0.00021917,2]
[381127286,1756060265574,-400.0,0.00021917,2]
[381127287,1756060265584,-400.0,0.00021917,2]
[381127288,1756060265593,-1785.02,0.00021917,2]
[381127289,1756060265605,-1819.44,0.00021917,2]
[381127290,1756060265615,-400.0,0.00021917,2]
[381127291,1756060265624,-1846.81,0.00021917,2]
[381127292,1756060265634,-762.49,0.00021917,2]
[381127293,1756060265643,-1329.42,0.00021917,2]
[381127294,1756060265652,-621.27,0.00021917,2]
[381127295,1756060265662,-1031.67,0.00021917,2]
[381127296,1756060265671,-1332.92,0.00021917,2]
[381127297,1756060265680,-634.43,0.00021917,2]
[381127298,1756060265690,-400.0,0.00021917,2]
[381127299,1756060265701,-400.0,0.00021917,2]
[381127300,1756060265714,-400.0,0.00021917,2]
[381127301,1756060265724,-1154.59,0.00021917,2]
[381127302,1756060265733,-400.0,0.00021917,2]
[381127303,1756060265743,-815.5,0.00021917,2]
[381127304,1756060265752,-400.0,0.00021917,2]
[381127305,1756060265762,-517.57937747,0.00021917,2]
[381127306,1756060265771,-400.0,0.00021917,2]
[381127307,1756060265781,-844.61,0.00021917,2]
[381127308,1756060265790,-552.06287018,0.00021917,2]
[381127309,1756060265800,-651.34,0.00021917,2]
[381127310,1756060265809,-651.34,0.00021917,2]
[381127311,1756060265818,-400.0,0.00021917,2]
[381127312,1756060265828,-400.0,0.00021917,2]
[381127313,1756060265837,-651.34,0.00021917,2]
[381127314,1756060265846,-651.34,0.00021917,2]
[381127315,1756060265855,-429.47,0.00021917,2]
[381127316,1756060265865,-784.85,0.00021917,2]
[381127317,1756060265874,-400.0,0.00021917,2]
[381127318,1756060265883,-1434.79,0.00021917,2]
[381127319,1756060265893,-651.34,0.00021917,2]
[381127320,1756060265905,-400.0,0.00021917,2]
[381127321,1756060265914,-651.34,0.00021917,2]
[381127322,1756060265923,-651.34,0.00021917,2]
[381127323,1756060265932,-1040.08,0.00021917,2]
[381127324,1756060265942,-651.34,0.00021917,2]
[381127325,1756060265954,-400.0,0.00021917,2]
[381127326,1756060265965,-651.34,0.00021917,2]
[381127327,1756060265974,-651.34,0.00021917,2]
[381127328,1756060265983,-734.91,0.00021917,2]
[381127329,1756060265993,-1528.17,0.00021917,2]
[381127330,1756060266002,-655.13,0.00021917,2]
[381127331,1756060266011,-400.0,0.00021917,2]
[381127332,1756060266021,-782.11,0.00021917,2]
[381127333,1756060266030,-795.72,0.00021917,2]
[381127334,1756060266039,-400.0,0.00021917,2]
[381127335,1756060266049,-447.5331823,0.00021917,2]
[381127336,1756060266059,-151.0,0.00021917,2]
[381127337,1756060266068,-151.0,0.00021917,2]
[381127338,1756060266077,-718.26,0.00021917,2]
[381127339,1756060266087,-400.0,0.00021917,2]
[381127340,1756060266096,-178.635124,0.00021917,2]
[381127341,1756060266105,-151.0,0.00021917,2]
[381127342,1756060266116,-178.635124,0.00021917,2]
[381127343,1756060266125,-151.0,0.00021917,2]
[381127344,1756060266135,-178.635124,0.00021917,2]
[381127345,1756060266145,-1022.7,0.00021917,2]
[381127346,1756060266154,-151.0,0.00021917,2]
[381127347,1756060266164,-151.0,0.00021917,2]
[381127348,1756060266174,-178.635124,0.00021917,2]
[381127349,1756060266183,-151.0,0.00021917,2]
[381127350,1756060266193,-178.635124,0.00021917,2]
[381127351,1756060266207,-151.0,0.00021917,2]
[381127352,1756060266217,-151.0,0.00021917,2]
[381127353,1756060266227,-400.0,0.00021917,2]
[381127354,1756060266237,-178.635124,0.00021917,2]
[381127355,1756060266247,-400.0,0.00021917,2]
[381127356,1756060266257,-151.0,0.00021917,2]
[381127357,1756060266268,-1469.32,0.00021917,2]
[381127358,1756060266277,-151.0,0.00021917,2]
[381127359,1756060266287,-178.635124,0.00021917,2]
[381127360,1756060266296,-151.0,0.00021917,2]
[381127361,1756060266305,-178.635124,0.00021917,2]
[381127362,1756060266315,-400.0,0.00021917,2]
[381127363,1756060266325,-178.635124,0.00021917,2]
[381127364,1756060266334,-400.0,0.00021917,2]
[381127365,1756060266343,-178.635124,0.00021917,2]
[381127366,1756060266352,-151.0,0.00021917,2]
[381127367,1756060266362,-178.635124,0.00021917,2]
[381127368,1756060266371,-519.03,0.00021917,2]
[381127369,1756060266380,-151.0,0.00021917,2]
[381127370,1756060266389,-178.635124,0.00021917,2]
[381127371,1756060266399,-1196.36,0.00021917,2]
[381127372,1756060266408,-151.0,0.00021917,2]
[381127373,1756060266417,-178.635124,0.00021917,2]
[381127374,1756060266427,-400.0,0.00021917,2]
[381127375,1756060266437,-188.156114,0.00021917,2]
[381127376,1756060266446,-178.635124,0.00021917,2]
[381127377,1756060266461,-178.635124,0.00021917,2]
[381127378,1756060266470,-151.0,0.00021917,2]
[381127379,1756060266480,-178.635124,0.00021917,2]
[381127380,1756060266490,-151.0,0.00021917,2]
[381127381,1756060266501,-575.18,0.00021917,2]
[381127382,1756060266511,-2892.06,0.00021917,2]
[381127383,1756060266520,-178.635124,0.00021917,2]
[381127384,1756060266531,-151.0,0.00021917,2]
[381127385,1756060266544,-178.635124,0.00021917,2]
[381127386,1756060266553,-151.0,0.00021917,2]
[381127387,1756060266564,-178.635124,0.00021917,2]
[381127388,1756060266574,-433.51,0.00021917,2]
[381127389,1756060266584,-151.0,0.00021917,2]
[381127390,1756060266593,-400.0,0.00021917,2]
[381127391,1756060266602,-178.63512,0.00021917,2]
[381127392,1756060266612,-151.0,0.00021917,2]
[381127393,1756060266621,-827.29,0.00021917,2]
[381127394,1756060266630,-151.0,0.00021917,2]
[381127395,1756060266639,-526.03,0.00021917,2]
[381127396,1756060266648,-151.0,0.00021917,2]
[381127397,1756060266658,-272.5678,0.00021917,2]
[381127398,1756060266667,-151.0,0.00021917,2]
[381127399,1756060266677,-151.0,0.00021917,2]
[381127400,1756060266686,-400.0,0.00021917,2]
[381127401,1756060266696,-151.0,0.00021917,2]
[381127402,1756060266709,-400.0,0.00021917,2]
[381127403,1756060266720,-151.0,0.00021917,2]
[381127404,1756060266729,-1335.26,0.00021917,2]
[381127405,1756060266739,-151.0,0.00021917,2]
[381127406,1756060266748,-151.0,0.00021917,2]
[381127407,1756060266758,-151.0,0.00021917,2]
[381127408,1756060266768,-151.0,0.00021917,2]
[381127409,1756060266778,-151.0,0.00021917,2]
[381127410,1756060266787,-151.0,0.00021917,2]
[381127411,1756060266797,-151.0,0.00021917,2]
[381127412,1756060266806,-151.0,0.00021917,2]
[381127413,1756060266815,-400.0,0.00021917,2]
[381127414,1756060266824,-249.722622,0.00021917,2]
[381127415,1756060266834,-151.0,0.00021917,2]
[381127416,1756060266843,-1663.29,0.00021917,2]
[381127417,1756060266853,-429.09,0.00021917,2]
[381127418,1756060266862,-400.0,0.00021917,2]
[381127419,1756060266871,-151.0,0.00021917,2]
[381127420,1756060266880,-151.0,0.00021917,2]
[381127421,1756060266890,-151.0,0.00021917,2]
[381127422,1756060266899,-151.0,0.00021917,2]
[381127423,1756060266907,-151.0,0.00021917,2]
[381127424,1756060266915,-151.0,0.00021917,2]
[381127425,1756060266925,-952.21,0.00021917,2]
[381127426,1756060266934,-151.0,0.00021917,2]
[381127427,1756060266943,-400.0,0.00021917,2]
[381127428,1756060266954,-400.0,0.00021917,2]
[381127429,1756060266963,-151.0,0.00021917,2]
[381127430,1756060266973,-765.54,0.00021917,2]
[381127431,1756060266982,-151.0,0.00021917,2]
[381127432,1756060266992,-151.0,0.00021917,2]
[381127433,1756060267001,-400.0,0.00021917,2]
[381127434,1756060267011,-509.72835383,0.00021917,2]
[381127435,1756060267020,-151.0,0.00021917,2]
[381127436,1756060267029,-151.0,0.00021917,2]
[381127437,1756060267038,-707.52,0.00021917,2]
[381127438,1756060267047,-151.0,0.00021917,2]
[381127439,1756060267056,-151.0,0.00021917,2]
[381127440,1756060267065,-400.0,0.00021917,2]
[381127441,1756060267075,-874.77,0.00021917,2]
[381127442,1756060267084,-151.0,0.00021917,2]
[381127443,1756060267093,-151.0,0.00021917,2]
[381127444,1756060267103,-401.13952555,0.00021917,2]
[381127445,1756060267112,-400.0,0.00021917,2]
[381127446,1756060267122,-151.0,0.00021917,2]
[381127447,1756060267131,-151.0,0.00021917,2]
[381127448,1756060267141,-151.0,0.00021917,2]
[381127449,1756060267151,-151.0,0.00021917,2]
[381127450,1756060267160,-151.0,0.00021917,2]
[381127451,1756060267170,-151.0,0.00021917,2]
[381127452,1756060267179,-151.0,0.00021917,2]
[381127453,1756060267188,-151.0,0.00021917,2]
[381127454,1756060267198,-151.0,0.00021917,2]
[381127455,1756060267210,-151.0,0.00021917,2]
[381127456,1756060267220,-151.0,0.00021917,2]
[381127457,1756060267229,-2250.31,0.00021917,2]
[381127458,1756060267238,-151.0,0.00021917,2]
[381127459,1756060267248,-400.0,0.00021917,2]
[381127460,1756060267257,-151.0,0.00021917,2]
[381127461,1756060267267,-151.0,0.00021917,2]
[381127462,1756060267277,-151.0,0.00021917,2]
[381127463,1756060267286,-151.0,0.00021917,2]
[381127464,1756060267296,-180.260692,0.00021917,2]
[381127465,1756060267305,-151.0,0.00021917,2]
[381127466,1756060267315,-197.13332,0.00021917,2]
[381127467,1756060267324,-754.77,0.00021917,2]
[381127468,1756060267333,-400.0,0.00021917,2]
[381127469,1756060267342,-1560.85,0.00021917,2]
[381127470,1756060267352,-400.0,0.00021917,2]
[381127471,1756060267361,-400.0,0.00021917,2]
[381127472,1756060267370,-151.0,0.00021917,2]
[381127473,1756060267379,-151.0,0.00021917,2]
[381127474,1756060267389,-1242.9,0.00021917,2]
[381127475,1756060267398,-151.0,0.00021917,2]
[381127476,1756060267407,-400.0,0.00021917,2]
[381127477,1756060267416,-400.0,0.00021917,2]
[381127478,1756060267425,-151.0,0.00021917,2]
[381127479,1756060267435,-1566.9,0.00021917,2]
[381127480,1756060267444,-400.2899106,0.00021917,2]
[381127481,1756060267459,-151.0,0.00021917,2]
[381127482,1756060267469,-513.65,0.00021917,2]
[381127483,1756060267481,-1318.82,0.00021917,2]
[381127484,1756060267499,-1521.4,0.00021917,2]
[381127485,1756060267508,-151.0,0.00021917,2]
[381127486,1756060267518,-725.32,0.00021917,2]
[381127487,1756060267527,-151.0,0.00021917,2]
[381127488,1756060267538,-151.0,0.00021917,2]
[381127489,1756060267547,-400.0,0.00021917,2]
[381127490,1756060267566,-242.083164,0.00021917,2]
[381127491,1756060267575,-1486.63,0.00021917,2]
[381127492,1756060267585,-587.43,0.00021917,2]
[381127493,1756060267594,-400.0,0.00021917,2]
[381127494,1756060267603,-400.0,0.00021917,2]
[381127495,1756060267613,-400.0,0.00021917,2]
[381127496,1756060267622,-764.47,0.00021917,2]
[381127497,1756060267631,-400.0,0.00021917,2]
[381127498,1756060267642,-1659.68,0.00021917,2]
[381127499,1756060267651,-1000.0,0.00021917,2]
[381127500,1756060267660,-263.308017,0.00021917,2]
[381127501,1756060267670,-263.308017,0.00021917,2]
[381127502,1756060267679,-263.308017,0.00021917,2]
[381127503,1756060267689,-263.308017,0.00021917,2]
[381127504,1756060267698,-675.71,0.00021917,2]
[381127505,1756060267710,-263.308017,0.00021917,2]
[381127506,1756060267719,-263.308017,0.00021917,2]
[381127507,1756060267729,-400.0,0.00021917,2]
[381127508,1756060267738,-400.0,0.00021917,2]
[381127509,1756060267748,-263.308017,0.00021917,2]
[381127510,1756060267757,-1.07691672,0.00021917,2]
[381127511,1756060267797,-1230.25308328,0.00021917,2]
[381127512,1756060267807,-400.0,0.00021917,2]
[381127513,1756060267817,-400.0,0.00021917,2]
[381127514,1756060267827,-524.08,0.00021917,2]
[381127515,1756060267836,-263.308017,0.00021917,2]
[381127516,1756060267847,-263.308017,0.00021917,2]
[381127517,1756060267856,-1193.99,0.00021917,2]
[381127518,1756060267866,-1388.34,0.00021917,2]
[381127519,1756060267876,-263.308017,0.00021917,2]
[381127520,1756060267886,-263.308017,0.00021917,2]
[381127521,1756060267896,-562.8,0.00021917,2]
[381127522,1756060267907,-263.308017,0.00021917,2]
[381127523,1756060267916,-400.0,0.00021917,2]
[381127524,1756060267926,-263.308017,0.00021917,2]
[381127525,1756060267935,-400.0,0.00021917,2]
[381127526,1756060267945,-263.308017,0.00021917,2]
[381127527,1756060267956,-263.308017,0.00021917,2]
[381127528,1756060267965,-2014.1,0.00021917,2]
[381127529,1756060267975,-263.308017,0.00021917,2]
[381127530,1756060267984,-263.308017,0.00021917,2]
[381127531,1756060267994,-1603.02,0.00021917,2]
[381127532,1756060268003,-263.308017,0.00021917,2]
[381127533,1756060268013,-263.308017,0.00021917,2]
[381127534,1756060268022,-263.308021,0.00021917,2]
[381127535,1756060268032,-400.0,0.00021917,2]
[381127536,1756060268042,-400.0,0.00021917,2]
[381127537,1756060268051,-400.0,0.00021917,2]
[381127538,1756060268061,-66.13897364,0.00021917,2]
[381127542,1756060491557,850.0,0.00028767,120]
[381127558,1756061049700,8129.43,0.00028767,120]
[381127691,1756061433261,-300.0,0.00013018,2]
[381127692,1756061433272,-500.0,0.00013699,2]
[381127693,1756061433282,-152.04,0.00013699,2]
[381127694,1756061433292,-1924.0,0.0001413,2]
[381127695,1756061433302,-250.0,0.0001413,2]
[381127696,1756061433312,-203.0,0.0001413,2]
[381127697,1756061433322,-300.0,0.0001413,2]
[381127698,1756061433332,-250.0,0.00015,2]
[381127699,1756061433341,-1200.0,0.00015065,2]
[381127700,1756061433351,-210.0,0.0001657,2]
[381127701,1756061433361,-300.0,0.00016977,2]
[381127702,1756061433370,-153.0,0.00016978,2]
[381127703,1756061433380,-153.0,0.00016978,2]
[381127704,1756061433389,-153.0,0.00016978,2]
[381127705,1756061433399,-405.5798196,0.0001729,2]
[381127706,1756061433408,-151.0,0.00017991,2]
[381127707,1756061433418,-1085.0,0.00018082,2]
[381127708,1756061433428,-267.46074303,0.00018943,2]
[381127709,1756061433437,-5199.43684444,0.00018943,2]